[Event "Titled Tuesday Blitz June 07 Early 2022"]
[White "Grischuk, Alexander"]
[Black "Babazada, Khazar"]
[WhiteFideId "4126025"]
[BlackFideId "13413554"]
[WhiteElo "2762"]
[BlackElo "2406"]
[Result "1-0"]
[Round "06"]
[TimeControl "180+1"]
[Date "2022.06.07"]
[WhiteClock "0:00:26"]
[BlackClock "0:00:22"]

1. d4 {[%clk 0:03:00]}  d5 {[%clk 0:02:57]} 2. Nf3 {[%clk 0:03:00]}  Nf6 {[%clk 0:02:57]} 3. Bf4 {[%clk 0:03:01]}  Bf5 {[%clk 0:02:50]} 4. c4 {[%clk 0:03:01]}  c6 {[%clk 0:02:48]} 5. Qb3 {[%clk 0:02:58]}  Qb6 {[%clk 0:02:47]} 6. c5 {[%clk 0:02:58]}  Qxb3 {[%clk 0:02:37]} 7. axb3 {[%clk 0:02:59]}  Na6 {[%clk 0:02:37]} 8. Nc3 {[%clk 0:02:44]}  Nb4 {[%clk 0:02:30]} 9. Ra4 {[%clk 0:02:43]}  a5 {[%clk 0:02:27]} 10. Bc7 {[%clk 0:02:42]}  Ne4 {[%clk 0:02:13]} 11. e3 {[%clk 0:01:53]}  Nxc3 {[%clk 0:01:41]} 12. bxc3 {[%clk 0:01:53]}  Nd3+ {[%clk 0:01:42]} 13. Bxd3 {[%clk 0:01:48]}  Bxd3 {[%clk 0:01:43]} 14. Kd2 {[%clk 0:01:44]}  Bb5 {[%clk 0:01:41]} 15. Rxa5 {[%clk 0:01:45]}  Rxa5 {[%clk 0:01:40]} 16. Bxa5 {[%clk 0:01:46]}  f6 {[%clk 0:01:40]} 17. Rc1 {[%clk 0:01:40]}  e6 {[%clk 0:01:33]} 18. c4 {[%clk 0:01:40]}  Ba6 {[%clk 0:01:33]} 19. Ne1 {[%clk 0:01:40]}  Kd7 {[%clk 0:01:31]} 20. Nd3 {[%clk 0:01:40]}  Be7 {[%clk 0:01:29]} 21. Nb4 {[%clk 0:01:40]}  Ra8 {[%clk 0:01:27]} 22. Bb6 {[%clk 0:01:39]}  Bd8 {[%clk 0:01:15]} 23. Ra1 {[%clk 0:01:34]}  Be7 {[%clk 0:01:09]} 24. Kc3 {[%clk 0:01:34]}  h5 {[%clk 0:01:07]} 25. f3 {[%clk 0:01:29]}  g5 {[%clk 0:01:05]} 26. e4 {[%clk 0:01:28]}  dxe4 {[%clk 0:01:00]} 27. fxe4 {[%clk 0:01:29]}  f5 {[%clk 0:01:01]} 28. e5 {[%clk 0:01:20]}  f4 {[%clk 0:00:59]} 29. h3 {[%clk 0:01:19]}  g4 {[%clk 0:00:56]} 30. hxg4 {[%clk 0:01:17]}  hxg4 {[%clk 0:00:57]} 31. Rh1 {[%clk 0:01:11]}  Rf8 {[%clk 0:00:50]} 32. Rf1 {[%clk 0:00:52]}  Bg5 {[%clk 0:00:45]} 33. Nd3 {[%clk 0:00:29]}  f3 {[%clk 0:00:30]} 34. gxf3 {[%clk 0:00:30]}  gxf3 {[%clk 0:00:27]} 35. Nf2 {[%clk 0:00:27]}  Rh8 {[%clk 0:00:22]} 36. Ne4 {[%clk 0:00:26]} 1-0


[Site "https://www.chess.com"]

[Event "Titled Tuesday Blitz June 07 Early 2022"]
[White "Kamsky, Gata"]
[Black "Lagno, Kateryna"]
[WhiteFideId "2000024"]
[BlackFideId "14109336"]
[WhiteElo "2645"]
[BlackElo "2522"]
[Result "1-0"]
[Round "06"]
[TimeControl "180+1"]
[Date "2022.06.07"]
[WhiteClock "0:00:23"]
[BlackClock "0:00:01"]

1. d4 {[%clk 0:03:00]}  Nf6 {[%clk 0:02:59]} 2. Nf3 {[%clk 0:02:54]}  g6 {[%clk 0:02:58]} 3. Bg5 {[%clk 0:02:51]}  Bg7 {[%clk 0:02:56]} 4. c3 {[%clk 0:02:50]}  O-O {[%clk 0:02:54]} 5. Nbd2 {[%clk 0:02:51]}  d5 {[%clk 0:02:54]} 6. e3 {[%clk 0:02:51]}  c5 {[%clk 0:02:53]} 7. Be2 {[%clk 0:02:49]}  b6 {[%clk 0:02:39]} 8. O-O {[%clk 0:02:49]}  Ba6 {[%clk 0:02:38]} 9. Bxa6 {[%clk 0:02:47]}  Nxa6 {[%clk 0:02:38]} 10. a4 {[%clk 0:02:46]}  Qc7 {[%clk 0:02:07]} 11. Qe2 {[%clk 0:02:45]}  Qb7 {[%clk 0:02:04]} 12. Rfd1 {[%clk 0:02:38]}  Rac8 {[%clk 0:01:56]} 13. Ne5 {[%clk 0:02:28]}  Rfd8 {[%clk 0:01:50]} 14. Qf3 {[%clk 0:02:23]}  Nc7 {[%clk 0:01:42]} 15. b4 {[%clk 0:01:53]}  cxb4 {[%clk 0:01:39]} 16. cxb4 {[%clk 0:01:53]}  Ne6 {[%clk 0:01:39]} 17. Bh4 {[%clk 0:01:53]}  Rc2 {[%clk 0:01:37]} 18. b5 {[%clk 0:01:50]}  Rdc8 {[%clk 0:01:12]} 19. Nc6 {[%clk 0:01:45]}  R8xc6 {[%clk 0:01:08]} 20. bxc6 {[%clk 0:01:44]}  Qxc6 {[%clk 0:01:09]} 21. Bxf6 {[%clk 0:01:41]}  Bxf6 {[%clk 0:01:08]} 22. Qe2 {[%clk 0:01:33]}  Qc3 {[%clk 0:01:06]} 23. Qe1 {[%clk 0:01:27]}  h5 {[%clk 0:00:40]} 24. Rac1 {[%clk 0:01:25]}  Kg7 {[%clk 0:00:37]} 25. Rxc2 {[%clk 0:01:24]}  Qxc2 {[%clk 0:00:38]} 26. Ra1 {[%clk 0:01:20]}  Ng5 {[%clk 0:00:34]} 27. h4 {[%clk 0:01:18]}  Ne4 {[%clk 0:00:24]} 28. Nxe4 {[%clk 0:01:17]}  Qxe4 {[%clk 0:00:25]} 29. g3 {[%clk 0:01:17]}  e6 {[%clk 0:00:25]} 30. Qb1 {[%clk 0:01:15]}  Qf3 {[%clk 0:00:25]} 31. Qd1 {[%clk 0:01:15]}  Qe4 {[%clk 0:00:25]} 32. Rc1 {[%clk 0:01:12]}  e5 {[%clk 0:00:15]} 33. dxe5 {[%clk 0:01:11]}  Bxe5 {[%clk 0:00:16]} 34. Qc2 {[%clk 0:00:44]}  Qf3 {[%clk 0:00:16]} 35. Rd1 {[%clk 0:00:40]}  a6 {[%clk 0:00:04]} 36. Rd2 {[%clk 0:00:39]}  b5 {[%clk 0:00:03]} 37. axb5 {[%clk 0:00:38]}  axb5 {[%clk 0:00:03]} 38. Qd1 {[%clk 0:00:39]}  Qe4 {[%clk 0:00:03]} 39. Rxd5 {[%clk 0:00:37]}  b4 {[%clk 0:00:04]} 40. Qd3 {[%clk 0:00:36]}  Qxd3 {[%clk 0:00:03]} 41. Rxd3 {[%clk 0:00:36]}  Bc3 {[%clk 0:00:03]} 42. Kf1 {[%clk 0:00:35]}  Kf6 {[%clk 0:00:02]} 43. e4 {[%clk 0:00:34]}  Ke5 {[%clk 0:00:02]} 44. f3 {[%clk 0:00:35]}  f5 {[%clk 0:00:02]} 45. exf5 {[%clk 0:00:34]}  Kxf5 {[%clk 0:00:03]} 46. Rd5+ {[%clk 0:00:33]}  Ke6 {[%clk 0:00:02]} 47. Rb5 {[%clk 0:00:33]}  Be5 {[%clk 0:00:02]} 48. Kf2 {[%clk 0:00:32]}  Bd6 {[%clk 0:00:02]} 49. g4 {[%clk 0:00:30]}  hxg4 {[%clk 0:00:01]} 50. fxg4 {[%clk 0:00:30]}  Kf7 {[%clk 0:00:01]} 51. Kf3 {[%clk 0:00:30]}  Be7 {[%clk 0:00:01]} 52. g5 {[%clk 0:00:30]}  Bd6 {[%clk 0:00:01]} 53. Rb6 {[%clk 0:00:29]}  Bc5 {[%clk 0:00:02]} 54. Rb5 {[%clk 0:00:28]}  Bd6 {[%clk 0:00:02]} 55. Kg4 {[%clk 0:00:27]}  Be7 {[%clk 0:00:02]} 56. h5 {[%clk 0:00:25]}  gxh5+ {[%clk 0:00:02]} 57. Kxh5 {[%clk 0:00:25]}  Bd6 {[%clk 0:00:02]} 58. Rb7+ {[%clk 0:00:24]}  Ke6 {[%clk 0:00:02]} 59. g6 {[%clk 0:00:25]}  Be5 {[%clk 0:00:01]} 60. Rxb4 {[%clk 0:00:23]} 1-0


[Site "https://www.chess.com"]

[Event "Titled Tuesday Blitz June 07 Early 2022"]
[White "Koelle, Tobias"]
[Black "Rodrigue-Lemieux, Shawn"]
[WhiteFideId "16207378"]
[BlackFideId "2620049"]
[WhiteElo "2541"]
[BlackElo "1763"]
[Result "0-1"]
[Round "06"]
[TimeControl "180+1"]
[Date "2022.06.07"]
[WhiteClock "0:00:12"]
[BlackClock "0:00:34"]

1. d4 {[%clk 0:03:00]}  Nf6 {[%clk 0:02:54]} 2. c4 {[%clk 0:03:01]}  e6 {[%clk 0:02:54]} 3. g3 {[%clk 0:03:01]}  d5 {[%clk 0:02:54]} 4. Bg2 {[%clk 0:03:00]}  Be7 {[%clk 0:02:54]} 5. Nf3 {[%clk 0:03:00]}  O-O {[%clk 0:02:55]} 6. O-O {[%clk 0:03:00]}  dxc4 {[%clk 0:02:56]} 7. Ne5 {[%clk 0:03:01]}  Nc6 {[%clk 0:02:56]} 8. Nxc6 {[%clk 0:03:01]}  bxc6 {[%clk 0:02:57]} 9. Na3 {[%clk 0:03:02]}  Bxa3 {[%clk 0:02:57]} 10. bxa3 {[%clk 0:03:03]}  Ba6 {[%clk 0:02:57]} 11. Qd2 {[%clk 0:03:03]}  Rb8 {[%clk 0:02:56]} 12. Qa5 {[%clk 0:03:03]}  Rb6 {[%clk 0:02:56]} 13. a4 {[%clk 0:03:01]}  Qxd4 {[%clk 0:02:56]} 14. Be3 {[%clk 0:03:00]}  Qb2 {[%clk 0:02:46]} 15. Bxb6 {[%clk 0:02:59]}  Qxb6 {[%clk 0:02:47]} 16. Qc3 {[%clk 0:02:52]}  Nd5 {[%clk 0:02:44]} 17. Qe5 {[%clk 0:02:50]}  Qb4 {[%clk 0:02:38]} 18. Qd4 {[%clk 0:02:43]}  c5 {[%clk 0:02:34]} 19. Qe5 {[%clk 0:02:38]}  c6 {[%clk 0:02:34]} 20. Rab1 {[%clk 0:02:25]}  Qxa4 {[%clk 0:02:32]} 21. Rb8 {[%clk 0:02:24]}  g6 {[%clk 0:02:13]} 22. Rxf8+ {[%clk 0:02:17]}  Kxf8 {[%clk 0:02:14]} 23. Qb8+ {[%clk 0:02:16]}  Kg7 {[%clk 0:02:12]} 24. Qxa7 {[%clk 0:02:16]}  Qxa2 {[%clk 0:02:11]} 25. Qxc5 {[%clk 0:02:13]}  Qxe2 {[%clk 0:02:10]} 26. Qxc6 {[%clk 0:02:14]}  c3 {[%clk 0:02:10]} 27. Ra1 {[%clk 0:02:07]}  c2 {[%clk 0:02:02]} 28. Bf1 {[%clk 0:01:23]}  Qd1 {[%clk 0:02:01]} 29. Qxa6 {[%clk 0:01:09]}  c1=Q {[%clk 0:02:00]} 30. Rxc1 {[%clk 0:01:07]}  Qxc1 {[%clk 0:02:01]} 31. Qd3 {[%clk 0:01:05]}  h5 {[%clk 0:01:58]} 32. h4 {[%clk 0:01:06]}  Qa1 {[%clk 0:01:57]} 33. Kg2 {[%clk 0:01:05]}  Qb2 {[%clk 0:01:56]} 34. Qe2 {[%clk 0:01:04]}  Qd4 {[%clk 0:01:54]} 35. Qf3 {[%clk 0:01:03]}  Qe5 {[%clk 0:01:53]} 36. Bd3 {[%clk 0:01:02]}  Nf6 {[%clk 0:01:53]} 37. Be2 {[%clk 0:01:00]}  Qb2 {[%clk 0:01:53]} 38. Bd3 {[%clk 0:00:59]}  Ng4 {[%clk 0:01:52]} 39. Bf1 {[%clk 0:00:57]}  Qd2 {[%clk 0:01:48]} 40. Qe2 {[%clk 0:00:55]}  Qd5+ {[%clk 0:01:47]} 41. Kg1 {[%clk 0:00:52]}  Qc5 {[%clk 0:01:43]} 42. Qb2+ {[%clk 0:00:51]}  Kg8 {[%clk 0:01:38]} 43. Bh3 {[%clk 0:00:49]}  Ne5 {[%clk 0:01:35]} 44. Bg2 {[%clk 0:00:47]}  Nd3 {[%clk 0:01:32]} 45. Qe2 {[%clk 0:00:43]}  Ne5 {[%clk 0:01:29]} 46. Qb2 {[%clk 0:00:42]}  Nd7 {[%clk 0:01:25]} 47. Qd2 {[%clk 0:00:40]}  Nf6 {[%clk 0:01:23]} 48. Qb2 {[%clk 0:00:39]}  Qf5 {[%clk 0:01:23]} 49. Qb8+ {[%clk 0:00:37]}  Kg7 {[%clk 0:01:23]} 50. Qb2 {[%clk 0:00:38]}  Kh7 {[%clk 0:01:23]} 51. Qb7 {[%clk 0:00:37]}  Ng4 {[%clk 0:01:20]} 52. Bf3 {[%clk 0:00:30]}  Ne5 {[%clk 0:01:16]} 53. Bg2 {[%clk 0:00:29]}  Kg7 {[%clk 0:01:13]} 54. Be4 {[%clk 0:00:28]}  Qf6 {[%clk 0:01:11]} 55. Bg2 {[%clk 0:00:25]}  Ng4 {[%clk 0:01:10]} 56. Bf3 {[%clk 0:00:24]}  Qa1+ {[%clk 0:01:09]} 57. Kg2 {[%clk 0:00:23]}  Ne5 {[%clk 0:01:10]} 58. Be4 {[%clk 0:00:22]}  Qd4 {[%clk 0:01:09]} 59. Qb1 {[%clk 0:00:20]}  Ng4 {[%clk 0:01:07]} 60. Qe1 {[%clk 0:00:15]}  Nxf2 {[%clk 0:00:58]} 61. Qxf2 {[%clk 0:00:10]}  Qxe4+ {[%clk 0:00:58]} 62. Kh2 {[%clk 0:00:09]}  Qe5 {[%clk 0:00:58]} 63. Qc2 {[%clk 0:00:08]}  Qf6 {[%clk 0:00:57]} 64. Qd2 {[%clk 0:00:08]}  Qf5 {[%clk 0:00:57]} 65. Qb2+ {[%clk 0:00:08]}  Kh7 {[%clk 0:00:58]} 66. Qd2 {[%clk 0:00:08]}  Kg8 {[%clk 0:00:56]} 67. Qd7 {[%clk 0:00:08]}  Kg7 {[%clk 0:00:56]} 68. Qd4+ {[%clk 0:00:07]}  e5 {[%clk 0:00:56]} 69. Qd7 {[%clk 0:00:07]}  Qxd7 {[%clk 0:00:42]} 70. Kg2 {[%clk 0:00:04]}  Qd2+ {[%clk 0:00:39]} 71. Kh3 {[%clk 0:00:05]}  f5 {[%clk 0:00:39]} 72. g4 {[%clk 0:00:04]}  hxg4+ {[%clk 0:00:39]} 73. Kg3 {[%clk 0:00:05]}  Kh6 {[%clk 0:00:35]} 74. h5 {[%clk 0:00:05]}  gxh5 {[%clk 0:00:36]} 75. Kh4 {[%clk 0:00:05]}  e4 {[%clk 0:00:34]} 76. Kg3 {[%clk 0:00:05]}  Qg5 {[%clk 0:00:34]} 77. Kf2 {[%clk 0:00:05]}  f4 {[%clk 0:00:35]} 78. Kg2 {[%clk 0:00:05]}  h4 {[%clk 0:00:35]} 79. Kf2 {[%clk 0:00:06]}  Qd5 {[%clk 0:00:35]} 80. Kg2 {[%clk 0:00:07]}  Qd3 {[%clk 0:00:35]} 81. Kf2 {[%clk 0:00:08]}  Qg3+ {[%clk 0:00:35]} 82. Kf1 {[%clk 0:00:08]}  Qh2 {[%clk 0:00:33]} 83. Ke1 {[%clk 0:00:08]}  Qg2 {[%clk 0:00:34]} 84. Kd1 {[%clk 0:00:08]}  h3 {[%clk 0:00:35]} 85. Ke1 {[%clk 0:00:09]}  h2 {[%clk 0:00:36]} 86. Kd1 {[%clk 0:00:10]}  h1=B {[%clk 0:00:35]} 87. Ke1 {[%clk 0:00:11]}  g3 {[%clk 0:00:34]} 88. Kd1 {[%clk 0:00:12]}  Qf2 {[%clk 0:00:34]} 0-1


[Site "https://www.chess.com"]

[Event "Titled Tuesday Blitz June 07 Early 2022"]
[White "Paravyan, David"]
[Black "Beerdsen, Thomas"]
[WhiteFideId "4194985"]
[BlackFideId "1030108"]
[WhiteElo "2569"]
[BlackElo "2585"]
[Result "1-0"]
[Round "06"]
[TimeControl "180+1"]
[Date "2022.06.07"]
[WhiteClock "0:00:55"]
[BlackClock "0:01:14"]

1. e4 {[%clk 0:03:00]}  e5 {[%clk 0:02:57]} 2. Nf3 {[%clk 0:03:00]}  Nc6 {[%clk 0:02:58]} 3. Nc3 {[%clk 0:02:58]}  Nf6 {[%clk 0:02:57]} 4. d4 {[%clk 0:02:59]}  exd4 {[%clk 0:02:58]} 5. Nxd4 {[%clk 0:03:00]}  Bb4 {[%clk 0:02:59]} 6. Nxc6 {[%clk 0:03:00]}  bxc6 {[%clk 0:03:00]} 7. Bd3 {[%clk 0:03:01]}  d5 {[%clk 0:03:00]} 8. exd5 {[%clk 0:03:02]}  O-O {[%clk 0:03:01]} 9. O-O {[%clk 0:03:02]}  Bg4 {[%clk 0:03:02]} 10. f3 {[%clk 0:03:02]}  Bh5 {[%clk 0:03:02]} 11. Bg5 {[%clk 0:03:03]}  Bxc3 {[%clk 0:02:54]} 12. bxc3 {[%clk 0:03:00]}  cxd5 {[%clk 0:02:55]} 13. c4 {[%clk 0:02:49]}  Qd6 {[%clk 0:02:49]} 14. Bxf6 {[%clk 0:02:44]}  Qxf6 {[%clk 0:02:45]} 15. cxd5 {[%clk 0:02:41]}  Rad8 {[%clk 0:02:44]} 16. c4 {[%clk 0:02:40]}  c6 {[%clk 0:02:40]} 17. Be4 {[%clk 0:02:38]}  Qc3 {[%clk 0:02:23]} 18. Rc1 {[%clk 0:02:35]}  Qe3+ {[%clk 0:02:23]} 19. Kh1 {[%clk 0:02:36]}  f5 {[%clk 0:02:24]} 20. Bc2 {[%clk 0:02:32]}  cxd5 {[%clk 0:02:15]} 21. cxd5 {[%clk 0:02:31]}  Rf6 {[%clk 0:02:07]} 22. Bb3 {[%clk 0:02:28]}  Bf7 {[%clk 0:02:08]} 23. Qe1 {[%clk 0:02:22]}  Qf4 {[%clk 0:02:02]} 24. Qg3 {[%clk 0:02:19]}  Qb4 {[%clk 0:01:34]} 25. Qc7 {[%clk 0:02:09]}  Rfd6 {[%clk 0:01:34]} 26. Rc6 {[%clk 0:01:41]}  a5 {[%clk 0:01:16]} 27. Rxd6 {[%clk 0:01:35]}  Qxd6 {[%clk 0:01:17]} 28. Qxa5 {[%clk 0:01:16]}  h5 {[%clk 0:01:15]} 29. Rc1 {[%clk 0:01:06]}  h4 {[%clk 0:01:13]} 30. h3 {[%clk 0:01:04]}  Re8 {[%clk 0:01:13]} 31. Re1 {[%clk 0:01:00]}  Rc8 {[%clk 0:01:13]} 32. Qd2 {[%clk 0:00:58]}  Qg3 {[%clk 0:01:14]} 33. d6 {[%clk 0:00:57]}  Bxb3 {[%clk 0:01:15]} 34. axb3 {[%clk 0:00:57]}  Rc2 {[%clk 0:01:16]} 35. Re8+ {[%clk 0:00:55]}  Kf7 {[%clk 0:01:14]} 36. Re7+ {[%clk 0:00:55]} 1-0


[Site "https://www.chess.com"]

[Event "Titled Tuesday Blitz June 07 Early 2022"]
[White "Sapunov, Evgeny"]
[Black "Kozak, Adam"]
[WhiteFideId "4126661"]
[BlackFideId "753246"]
[WhiteElo "2470"]
[BlackElo "2459"]
[Result "1/2-1/2"]
[Round "06"]
[TimeControl "180+1"]
[Date "2022.06.07"]
[WhiteClock "0:00:03"]
[BlackClock "0:00:08"]

1. c4 {[%clk 0:02:58]}  Nf6 {[%clk 0:02:59]} 2. Nf3 {[%clk 0:02:57]}  g6 {[%clk 0:02:59]} 3. Nc3 {[%clk 0:02:57]}  Bg7 {[%clk 0:03:00]} 4. e4 {[%clk 0:02:58]}  d6 {[%clk 0:03:00]} 5. d4 {[%clk 0:02:58]}  O-O {[%clk 0:02:59]} 6. Be2 {[%clk 0:02:58]}  Bg4 {[%clk 0:02:59]} 7. Be3 {[%clk 0:02:58]}  Nc6 {[%clk 0:02:55]} 8. d5 {[%clk 0:02:55]}  Bxf3 {[%clk 0:02:51]} 9. Bxf3 {[%clk 0:02:54]}  Ne5 {[%clk 0:02:52]} 10. Be2 {[%clk 0:02:55]}  c5 {[%clk 0:02:49]} 11. O-O {[%clk 0:02:54]}  Ned7 {[%clk 0:02:49]} 12. Qd2 {[%clk 0:02:50]}  a6 {[%clk 0:02:50]} 13. a4 {[%clk 0:02:50]}  Qa5 {[%clk 0:02:49]} 14. Qc2 {[%clk 0:02:42]}  Rab8 {[%clk 0:02:48]} 15. Bd2 {[%clk 0:02:41]}  Qd8 {[%clk 0:02:48]} 16. Rad1 {[%clk 0:02:37]}  Ne8 {[%clk 0:02:48]} 17. f4 {[%clk 0:02:31]}  Nc7 {[%clk 0:02:48]} 18. Kh1 {[%clk 0:02:31]}  Nb6 {[%clk 0:02:44]} 19. Bd3 {[%clk 0:02:26]}  Nd7 {[%clk 0:02:44]} 20. Be3 {[%clk 0:02:20]}  Na8 {[%clk 0:02:35]} 21. h3 {[%clk 0:02:17]}  Qa5 {[%clk 0:02:34]} 22. Bd2 {[%clk 0:02:16]}  Qb6 {[%clk 0:02:35]} 23. b3 {[%clk 0:02:13]}  Nc7 {[%clk 0:02:34]} 24. Rde1 {[%clk 0:02:13]}  Qa7 {[%clk 0:02:34]} 25. Be3 {[%clk 0:02:04]}  b5 {[%clk 0:02:33]} 26. cxb5 {[%clk 0:02:01]}  axb5 {[%clk 0:02:33]} 27. Nxb5 {[%clk 0:02:00]}  Nxb5 {[%clk 0:02:33]} 28. Bxb5 {[%clk 0:01:59]}  Nf6 {[%clk 0:02:23]} 29. Qd3 {[%clk 0:01:55]}  Ne8 {[%clk 0:02:23]} 30. Bd2 {[%clk 0:01:49]}  Nc7 {[%clk 0:02:23]} 31. Bc4 {[%clk 0:01:50]}  Qb7 {[%clk 0:02:20]} 32. e5 {[%clk 0:01:46]}  Rfd8 {[%clk 0:02:16]} 33. e6 {[%clk 0:01:45]}  f5 {[%clk 0:02:16]} 34. g4 {[%clk 0:01:45]}  Rf8 {[%clk 0:02:16]} 35. Kh2 {[%clk 0:01:41]}  Bd4 {[%clk 0:02:14]} 36. Qf3 {[%clk 0:01:37]}  Na8 {[%clk 0:02:10]} 37. a5 {[%clk 0:01:29]}  Nc7 {[%clk 0:02:08]} 38. Re2 {[%clk 0:01:28]}  Qa8 {[%clk 0:01:55]} 39. Rg2 {[%clk 0:01:25]}  Kh8 {[%clk 0:01:55]} 40. Bc3 {[%clk 0:01:17]}  Nb5 {[%clk 0:01:54]} 41. Bd2 {[%clk 0:01:15]}  Nc7 {[%clk 0:01:52]} 42. h4 {[%clk 0:01:13]}  fxg4 {[%clk 0:01:46]} 43. Rxg4 {[%clk 0:01:13]}  Rf5 {[%clk 0:01:45]} 44. Rg5 {[%clk 0:01:14]}  Rbf8 {[%clk 0:01:46]} 45. Kg3 {[%clk 0:01:02]}  Be5 {[%clk 0:01:33]} 46. Qe4 {[%clk 0:00:58]}  Bd4 {[%clk 0:01:26]} 47. Rf3 {[%clk 0:00:58]}  Bf6 {[%clk 0:01:17]} 48. Rxf5 {[%clk 0:00:55]}  gxf5 {[%clk 0:01:18]} 49. Qd3 {[%clk 0:00:54]}  Qe8 {[%clk 0:01:17]} 50. Kg2 {[%clk 0:00:37]}  Qh5 {[%clk 0:01:12]} 51. Be1 {[%clk 0:00:37]}  Rg8+ {[%clk 0:01:02]} 52. Rg3 {[%clk 0:00:35]}  Ra8 {[%clk 0:01:01]} 53. Rg5 {[%clk 0:00:32]}  Bxg5 {[%clk 0:00:58]} 54. hxg5 {[%clk 0:00:33]}  Qg4+ {[%clk 0:00:57]} 55. Qg3 {[%clk 0:00:32]}  Qxg3+ {[%clk 0:00:55]} 56. Kxg3 {[%clk 0:00:32]}  Kg7 {[%clk 0:00:55]} 57. Kh4 {[%clk 0:00:33]}  Kg6 {[%clk 0:00:55]} 58. Bc3 {[%clk 0:00:31]}  h6 {[%clk 0:00:37]} 59. Be2 {[%clk 0:00:29]}  hxg5+ {[%clk 0:00:36]} 60. fxg5 {[%clk 0:00:30]}  Nxd5 {[%clk 0:00:34]} 61. Bh5+ {[%clk 0:00:29]}  Kh7 {[%clk 0:00:33]} 62. Bd2 {[%clk 0:00:27]}  Ra7 {[%clk 0:00:18]} 63. Bf3 {[%clk 0:00:25]}  Nc7 {[%clk 0:00:15]} 64. Kh5 {[%clk 0:00:21]}  Nxe6 {[%clk 0:00:15]} 65. g6+ {[%clk 0:00:20]}  Kg7 {[%clk 0:00:16]} 66. Bc3+ {[%clk 0:00:20]}  Nd4 {[%clk 0:00:14]} 67. Bd5 {[%clk 0:00:16]}  e5 {[%clk 0:00:12]} 68. Kg5 {[%clk 0:00:14]}  f4 {[%clk 0:00:13]} 69. Be4 {[%clk 0:00:13]}  Nxb3 {[%clk 0:00:12]} 70. Kf5 {[%clk 0:00:12]}  Nxa5 {[%clk 0:00:12]} 71. Ke6 {[%clk 0:00:12]}  Nc4 {[%clk 0:00:12]} 72. Kd5 {[%clk 0:00:13]}  Ra4 {[%clk 0:00:08]} 73. Bd3 {[%clk 0:00:11]}  Ne3+ {[%clk 0:00:04]} 74. Kxd6 {[%clk 0:00:11]}  Ng4 {[%clk 0:00:05]} 75. Bf5 {[%clk 0:00:10]}  Rc4 {[%clk 0:00:03]} 76. Ba1 {[%clk 0:00:09]}  Ra4 {[%clk 0:00:03]} 77. Bb2 {[%clk 0:00:09]}  Ra2 {[%clk 0:00:03]} 78. Bc3 {[%clk 0:00:10]}  Ra6+ {[%clk 0:00:03]} 79. Kxc5 {[%clk 0:00:09]}  Ra8 {[%clk 0:00:02]} 80. Bxg4 {[%clk 0:00:08]}  Kxg6 {[%clk 0:00:02]} 81. Bxe5 {[%clk 0:00:09]}  Kg5 {[%clk 0:00:02]} 82. Be6 {[%clk 0:00:09]}  Re8 {[%clk 0:00:02]} 83. Kd6 {[%clk 0:00:09]}  f3 {[%clk 0:00:02]} 84. Bg3 {[%clk 0:00:10]}  Rb8 {[%clk 0:00:01]} 85. Ke5 {[%clk 0:00:10]}  Rb2 {[%clk 0:00:01]} 86. Bd5 {[%clk 0:00:08]}  Kg4 {[%clk 0:00:01]} 87. Bxf3+ {[%clk 0:00:04]}  Kxf3 {[%clk 0:00:02]} 88. Bh4 {[%clk 0:00:04]}  Rb5+ {[%clk 0:00:02]} 89. Kd6 {[%clk 0:00:04]}  Ke4 {[%clk 0:00:02]} 90. Kc6 {[%clk 0:00:04]}  Rf5 {[%clk 0:00:02]} 91. Bg3 {[%clk 0:00:04]}  Kd4 {[%clk 0:00:02]} 92. Kb7 {[%clk 0:00:04]}  Kc5 {[%clk 0:00:03]} 93. Ka8 {[%clk 0:00:04]}  Rf7 {[%clk 0:00:03]} 94. Bh2 {[%clk 0:00:05]}  Kc6 {[%clk 0:00:03]} 95. Bg3 {[%clk 0:00:05]}  Rf3 {[%clk 0:00:03]} 96. Bh2 {[%clk 0:00:05]}  Rb3 {[%clk 0:00:04]} 97. Bb8 {[%clk 0:00:04]}  Ra3+ {[%clk 0:00:04]} 98. Ba7 {[%clk 0:00:04]}  Ra2 {[%clk 0:00:04]} 99. Kb8 {[%clk 0:00:04]}  Rb2+ {[%clk 0:00:04]} 100. Ka8 {[%clk 0:00:05]}  Rg2 {[%clk 0:00:04]} 101. Bb8 {[%clk 0:00:05]}  Rg8 {[%clk 0:00:04]} 102. Ka7 {[%clk 0:00:05]}  Rg7+ {[%clk 0:00:02]} 103. Ka8 {[%clk 0:00:05]}  Rg8 {[%clk 0:00:02]} 104. Ka7 {[%clk 0:00:05]}  Kb5 {[%clk 0:00:03]} 105. Kb7 {[%clk 0:00:05]}  Re8 {[%clk 0:00:03]} 106. Bc7 {[%clk 0:00:05]}  Kc4 {[%clk 0:00:03]} 107. Kc6 {[%clk 0:00:05]}  Re6+ {[%clk 0:00:03]} 108. Bd6 {[%clk 0:00:06]}  Re2 {[%clk 0:00:04]} 109. Bc7 {[%clk 0:00:05]}  Ra2 {[%clk 0:00:04]} 110. Bd6 {[%clk 0:00:05]}  Ra6+ {[%clk 0:00:05]} 111. Kd7 {[%clk 0:00:06]}  Kd5 {[%clk 0:00:05]} 112. Bg3 {[%clk 0:00:06]}  Ra7+ {[%clk 0:00:04]} 113. Kc8 {[%clk 0:00:06]}  Kc6 {[%clk 0:00:05]} 114. Kb8 {[%clk 0:00:06]}  Ra6 {[%clk 0:00:04]} 115. Bf4 {[%clk 0:00:06]}  Ra4 {[%clk 0:00:04]} 116. Bg3 {[%clk 0:00:06]}  Kb6 {[%clk 0:00:04]} 117. Bf2+ {[%clk 0:00:05]}  Kc6 {[%clk 0:00:04]} 118. Bg3 {[%clk 0:00:06]}  Rg4 {[%clk 0:00:05]} 119. Bh2 {[%clk 0:00:05]}  Kb6 {[%clk 0:00:05]} 120. Ka8 {[%clk 0:00:04]}  Ra4+ {[%clk 0:00:04]} 121. Kb8 {[%clk 0:00:03]}  Ra1 {[%clk 0:00:02]} 122. Kc8 {[%clk 0:00:02]}  Rh1 {[%clk 0:00:02]} 123. Bf4 {[%clk 0:00:02]}  Rf1 {[%clk 0:00:02]} 124. Bg3 {[%clk 0:00:02]}  Kc6 {[%clk 0:00:01]} 125. Kb8 {[%clk 0:00:02]}  Rf3 {[%clk 0:00:02]} 126. Bh2 {[%clk 0:00:02]}  Ra3 {[%clk 0:00:03]} 127. Bg1 {[%clk 0:00:01]}  Ra2 {[%clk 0:00:04]} 128. Be3 {[%clk 0:00:01]}  Ra1 {[%clk 0:00:04]} 129. Bf4 {[%clk 0:00:02]}  Ra5 {[%clk 0:00:05]} 130. Bg3 {[%clk 0:00:02]}  Rb5+ {[%clk 0:00:06]} 131. Ka8 {[%clk 0:00:02]}  Rg5 {[%clk 0:00:07]} 132. Bf4 {[%clk 0:00:03]}  Ra5+ {[%clk 0:00:07]} 133. Kb8 {[%clk 0:00:03]}  Rf5 {[%clk 0:00:07]} 134. Bg3 {[%clk 0:00:03]}  Kb6 {[%clk 0:00:08]} 135. Ka8 {[%clk 0:00:03]}  Ra5+ {[%clk 0:00:08]} 136. Kb8 {[%clk 0:00:03]}  Ra2 {[%clk 0:00:08]} 137. Bf4 {[%clk 0:00:03]}  Re2 {[%clk 0:00:08]} 1/2-1/2


[Site "https://www.chess.com"]